bitfinex/quotes_SOLUSD_20250803
["timestamp","ask_amount","ask_price","bid_price","bid_amount"]
[1754245624173,0.71,162.28,162.23,14.9139678]
[1754245624369,15.6239678,162.28,162.24,43.66]
[1754245624599,14.9139678,162.28,162.24,43.66]
[1754245624900,14.9139678,162.28,162.24,44.18]
[1754245625081,0.71,162.29,162.25,14.9139678]
[1754245625280,14.9439678,162.3,162.25,15.4339678]
[1754245625484,15.6539678,162.3,162.25,15.4339678]
[1754245626498,0.74,162.3,162.25,15.4339678]
[1754245626684,0.03,162.3,162.27,14.9139678]
[1754245626896,0.03,162.3,162.27,58.5739678]
[1754245627112,0.03,162.3,162.28,15.4339678]
[1754245628018,0.03,162.3,162.28,14.9139678]
[1754245628597,0.03,162.3,162.27,44.27625685]
[1754245628795,0.03,162.3,162.27,59.71022465]
[1754245629104,0.03,162.3,162.27,59.0939678]
[1754245629301,0.03,162.3,162.28,14.9139678]
[1754245630106,0.03,162.3,162.27,44.18]
[1754245630309,14.9139678,162.28,162.26,43.64]
[1754245630621,26.74,162.3,162.26,43.64]
[1754245631005,15.6539678,162.3,162.26,43.64]
[1754245631323,14.9139678,162.28,162.26,43.64]
[1754245631498,14.9139678,162.29,162.26,43.64]
[1754245631704,0.71,162.28,162.26,43.64]
[1754245632427,14.9139678,162.29,162.26,43.64]
[1754245632713,15.6239678,162.29,162.26,43.64]
[1754245633286,14.9139678,162.27,162.26,43.64]
[1754245633598,15.6239678,162.27,162.24,43.66]
[1754245633786,15.6239678,162.26,162.24,43.66]
[1754245634597,0.71,162.25,162.24,43.66]
[1754245634917,14.9139678,162.26,162.24,43.66]
[1754245635117,0.74,162.3,162.25,0.52]
[1754245635309,14.9139678,162.29,162.24,59.1903386]
[1754245635498,14.9139678,162.26,162.24,43.66]
[1754245635703,15.6239678,162.26,162.24,43.66]
[1754245636297,0.71,162.26,162.24,43.66]
[1754245636495,14.9139678,162.27,162.24,43.66]
[1754245636689,0.74,162.3,162.24,43.66]
[1754245636944,14.9139678,162.27,162.24,43.66]
[1754245637108,0.71,162.28,162.24,58.5739678]
[1754245637309,14.9139678,162.27,162.24,43.66]
[1754245637824,15.6239678,162.28,162.24,43.66]
[1754245638015,0.74,162.3,162.24,44.18]
[1754245638200,14.9139678,162.29,162.25,0.52]
[1754245638520,15.6239678,162.29,162.25,0.52]
[1754245638824,14.9139678,162.29,162.25,0.52]
[1754245639399,0.03,162.3,162.26,0.61629483]
[1754245639613,0.03,162.3,162.28,14.9139678]
[1754245639815,0.03,162.3,162.28,44.28]
[1754245640011,15.6539678,162.3,162.28,43.76]
[1754245640798,14.9439678,162.3,162.28,43.76]
[1754245641624,0.03,162.3,162.28,43.76]
[1754245641820,0.03,162.3,162.28,44.28]
[1754245642330,0.03,162.3,162.28,59.1939678]
[1754245642505,0.03,162.3,162.28,44.28]
[1754245644829,0.03,162.3,162.28,59.1939678]
[1754245645323,0.03,162.3,162.28,44.28]
[1754245645512,0.03,162.3,162.28,43.76]
[1754245645926,0.74,162.3,162.28,43.76]
[1754245646125,0.03,162.3,162.28,43.76]
[1754245646627,0.03,162.3,162.28,44.28]
[1754245647013,0.03,162.3,162.28,44.89621888]
[1754245647926,0.03,162.3,162.29,14.9139678]
[1754245648109,0.03,162.3,162.28,43.76]
[1754245648431,15.6239678,162.29,162.28,43.76]
[1754245648739,0.71,162.29,162.28,43.76]
[1754245648937,15.6239678,162.29,162.28,43.76]
[1754245649240,0.71,162.29,162.28,43.76]
[1754245649648,0.03,162.3,162.28,43.76]
[1754245650155,0.74,162.3,162.28,43.76]
[1754245650759,15.6239678,162.29,162.28,43.72]
[1754245651539,0.03,162.3,162.28,43.72]
[1754245652433,0.03,162.3,162.28,59.25018668]
[1754245652737,0.03,162.3,162.28,59.77018668]
[1754245652910,0.03,162.3,162.28,59.25018668]
[1754245653114,0.03,162.3,162.29,15.4339678]
[1754245653932,0.03,162.3,162.29,0.52]
[1754245654240,0.03,162.3,162.28,59.25018668]
[1754245654440,0.03,162.3,162.29,14.9139678]
[1754245655542,0.03,162.3,162.28,44.33621888]
[1754245655744,0.03,162.3,162.29,14.9139678]
[1754245655935,0.03,162.3,162.29,32.83483268]
[1754245656424,0.03,162.3,162.29,17.92086488]
[1754245656624,0.03,162.3,162.29,27.23392666]
[1754245657031,0.03,162.3,162.29,36.54698844]
[1754245657423,0.03,162.32,162.31,26.0]
[1754245657619,0.03,162.32,162.31,96.35385073]
[1754245657838,0.03,162.32,162.31,96.87385073]
[1754245658648,0.03,162.32,162.31,102.45675959]
[1754245658835,0.03,162.32,162.31,104.40627559]
[1754245659040,0.03,162.32,162.31,104.92627559]
[1754245664466,0.03,162.32,162.31,104.94627559]
[1754245665365,0.67,162.37,162.35,7.87]
[1754245665570,0.67,162.37,162.36,58.51597064]
[1754245666150,0.67,162.37,162.36,75.30065461]
[1754245666469,0.67,162.38,162.36,75.30065461]
[1754245666670,0.67,162.38,162.37,14.89597064]
[1754245666850,0.67,162.38,162.37,15.51184795]
[1754245667054,0.67,162.38,162.37,0.61587731]
[1754245667258,0.67,162.38,162.37,15.51184795]
[1754245668977,0.03,162.39,162.37,15.51184795]
[1754245669155,0.7,162.39,162.38,58.51597064]
[1754245670658,0.7,162.39,162.38,60.40468397]
[1754245670659,0.03,162.39,162.38,60.40468397]
[1754245670866,0.03,162.39,162.38,75.30065461]
[1754245671064,0.03,162.39,162.38,75.91649399]
[1754245671967,0.03,162.39,162.38,75.30065461]
[1754245672981,0.7,162.39,162.38,75.30065461]
[1754245673178,0.03,162.39,162.38,75.30065461]
[1754245673553,0.03,162.39,162.38,31.68065461]
[1754245673877,0.7,162.39,162.38,75.26065461]
[1754245674274,0.03,162.39,162.38,75.26065461]
[1754245676478,0.03,162.39,162.38,75.78065461]
[1754245677465,0.03,162.39,162.38,76.39649399]
[1754245678786,0.03,162.39,162.38,70.80237115]
[1754245679291,0.03,162.39,162.38,79.45504135]
[1754245679452,0.7,162.39,162.38,43.56]
[1754245679654,0.7,162.39,162.38,52.8618478]
[1754245681363,0.03,162.39,162.38,70.16653177]
[1754245681865,0.03,162.39,162.38,16.78468397]
[1754245682166,0.03,162.39,162.38,88.68105077]
[1754245682556,0.03,162.39,162.38,89.29689015]
[1754245682788,0.03,162.39,162.38,26.70237115]
[1754245682957,0.7,162.39,162.38,70.30237115]
[1754245683360,0.7,162.39,162.38,9.3018478]
[1754245683685,0.7,162.39,162.38,51.52]
[1754245684269,0.7,162.39,162.38,43.62]
[1754245684593,10.0018478,162.39,162.37,43.62]
[1754245684772,14.92935198,162.39,162.37,43.62]
[1754245684981,0.67,162.38,162.37,43.62]
[1754245689192,0.67,162.38,162.34,14.89935198]
[1754245689372,14.89935198,162.37,162.32,14.89935198]
[1754245689570,15.56935198,162.36,162.33,43.6]
[1754245689898,15.56935198,162.35,162.33,51.52]
[1754245690195,15.56935198,162.34,162.33,51.52]
[1754245690492,15.56935198,162.34,162.33,7.9]
[1754245690680,0.67,162.34,162.33,7.9]
[1754245691368,15.56935198,162.34,162.33,7.9]
[1754245692581,0.67,162.34,162.33,7.9]
[1754245693068,15.56935198,162.34,162.33,7.9]
[1754245694305,15.56935198,162.34,162.31,0.06]
[1754245694603,26.0,162.36,162.31,0.06]
[1754245694604,14.89935198,162.32,162.31,0.06]
[1754245694999,15.59935198,162.32,162.31,0.06]
[1754245696197,0.7,162.32,162.31,0.06]
[1754245696393,15.59935198,162.32,162.31,0.06]
[1754245696582,19.7350234,162.32,162.31,0.06]
[1754245699299,19.73133173,162.32,162.31,0.06]
[1754245700406,15.59935198,162.32,162.31,0.06]
[1754245703188,10.0,162.38,162.31,0.06]
[1754245703509,15.59935198,162.35,162.31,0.06]
[1754245704678,10.01562376,162.37,162.32,9.83562376]
[1754245704896,0.7,162.37,162.33,9.31562376]
[1754245705210,0.7,162.37,162.33,9.83562376]
[1754245706288,0.7,162.37,162.33,9.31562376]
[1754245706810,10.04562376,162.39,162.34,9.31562376]
[1754245707103,10.01562376,162.38,162.34,9.31562376]
[1754245707311,0.7,162.37,162.34,9.31562376]
[1754245707818,36.04562376,162.39,162.34,9.31562376]
[1754245708111,0.7,162.38,162.34,9.31562376]
[1754245708326,26.03,162.39,162.36,9.31562376]
[1754245708616,0.03,162.39,162.37,9.31562376]
[1754245708827,0.03,162.39,162.36,9.83562376]
[1754245709620,0.03,162.39,162.37,9.31562376]
[1754245710125,0.03,162.39,162.38,9.31562376]
[1754245710282,0.03,162.39,162.38,17.21562376]
[1754245710603,0.03,162.39,162.38,9.83562376]
[1754245713813,10.04562376,162.39,162.34,52.87562376]
[1754245714008,9.31562376,162.38,162.34,43.56]
[1754245714193,0.7,162.37,162.33,9.31562376]
[1754245715188,0.7,162.36,162.32,9.31562376]
[1754245715392,0.7,162.35,162.32,17.21562376]
[1754245716218,10.01562376,162.37,162.32,17.21562376]
[1754245716425,0.7,162.36,162.32,17.21562376]
[1754245716915,0.7,162.36,162.32,17.73562376]
[1754245717509,0.7,162.35,162.32,7.9]
[1754245717719,0.7,162.34,162.32,7.9]
[1754245718023,10.01562376,162.34,162.32,7.9]
[1754245718393,9.31562376,162.34,162.31,0.06]
[1754245718592,9.31562376,162.32,162.31,0.06]
[1754245719014,10.01562376,162.33,162.31,0.06]
[1754245720517,0.7,162.32,162.31,0.06]
[1754245720706,10.01562376,162.32,162.31,0.06]
[1754245722401,9.31562376,162.32,162.31,0.06]
[1754245722600,10.01562376,162.32,162.31,0.06]
[1754245724236,14.14716427,162.32,162.31,0.06]
[1754245728044,10.00562376,162.33,162.31,0.06]
[1754245728532,9.31562376,162.34,162.31,0.06]
[1754245728743,9.31562376,162.34,162.31,0.58]
[1754245729938,0.72,162.35,162.31,0.58]
[1754245730147,9.34562376,162.35,162.31,0.58]
[1754245730910,9.31562376,162.34,162.31,0.58]
[1754245731634,10.03562376,162.35,162.31,0.58]
[1754245734339,10.03562376,162.35,162.31,0.06]
[1754245734842,9.34562376,162.35,162.31,0.06]
[1754245735040,10.00562376,162.34,162.31,0.06]
[1754245735242,9.34562376,162.35,162.32,0.52]
[1754245735430,0.03,162.35,162.31,0.06]
[1754245735630,0.69,162.34,162.31,0.06]
[1754245736144,0.69,162.34,162.31,9.37562376]
[1754245737551,0.03,162.35,162.31,0.06]
[1754245737552,10.00562376,162.33,162.31,0.06]
[1754245737760,0.69,162.32,162.31,0.06]
[1754245739714,0.69,162.32,162.31,7.96]
[1754245739927,10.00562376,162.32,162.31,7.96]
[1754245740323,10.00562376,162.32,162.31,0.06]
[1754245744754,14.14463025,162.32,162.31,0.06]
[1754245745062,26.0,162.31,162.3,0.06]
[1754245745260,66.24493798,162.31,162.3,0.06]
[1754245746332,71.12497594,162.31,162.3,0.06]
[1754245747223,71.12497594,162.31,162.29,0.06]
[1754245747224,16.78468397,162.3,162.29,0.06]
[1754245747430,40.24493798,162.3,162.29,0.06]
[1754245747628,21.61369046,162.3,162.29,0.06]
[1754245747830,30.92931422,162.3,162.29,0.06]
[1754245748051,74.36931422,162.3,162.29,0.06]
[1754245758554,9.31562376,162.3,162.29,0.64]
[1754245758741,35.31562376,162.3,162.29,0.06]
[1754245759345,83.53893646,162.3,162.29,0.06]
[1754245763751,73.5033127,162.3,162.29,0.06]
[1754245764068,44.0655688,162.3,162.29,0.06]
[1754245766256,44.06903008,162.3,162.29,0.06]
[1754245766463,44.7696388,162.3,162.29,0.06]
[1754245767870,44.0696388,162.3,162.29,0.06]
[1754245768165,44.7696388,162.3,162.29,0.06]
[1754245771449,44.0696388,162.3,162.29,0.06]
[1754245771870,87.4096388,162.3,162.29,0.06]
[1754245773363,8.75401504,162.3,162.29,0.06]
[1754245773568,4.60724106,162.3,162.29,0.64]
[1754245773758,4.60724106,162.3,162.29,0.06]
[1754245774074,13.92286482,162.3,162.29,0.06]
[1754245774864,14.62286482,162.3,162.29,0.06]
[1754245776778,13.92286482,162.3,162.29,0.06]
[1754245779676,4.60724106,162.3,162.29,0.06]
[1754245779873,4.63724106,162.3,162.29,0.06]
[1754245780189,4.63724106,162.3,162.29,0.64]
[1754245780356,4.63724106,162.3,162.29,0.06]
[1754245781467,18.10513028,162.3,162.29,0.06]
[1754245782061,8.78950652,162.3,162.29,0.06]
[1754245782264,18.10513028,162.3,162.29,0.06]
[1754245782782,8.78950652,162.3,162.29,0.06]
[1754245788078,18.82513028,162.3,162.29,0.06]
[1754245789690,35.60981425,162.3,162.29,0.06]
[1754245789902,16.78468397,162.29,162.28,0.06]
[1754245790194,78.17981425,162.29,162.28,0.06]
[1754245790517,84.09551247,162.29,162.28,0.06]
[1754245792387,84.10644765,162.29,162.28,0.06]
[1754245792901,84.10644765,162.29,162.27,0.06]
[1754245793192,18.80606546,162.28,162.27,0.06]
[1754245794273,35.31562376,162.25,162.24,0.06]
[1754245794616,87.40606546,162.25,162.24,0.06]
[1754245794965,88.12606546,162.25,162.24,0.06]
[1754245795165,88.12392912,162.25,162.24,0.06]
[1754245798702,62.12392912,162.25,162.24,0.06]
[1754245798870,84.10099504,162.25,162.24,0.06]
[1754245799069,78.90861309,162.25,162.24,0.06]
[1754245799491,88.90861309,162.25,162.24,0.06]
[1754245800287,95.84217258,162.25,162.24,0.06]
[1754245800681,92.12820459,162.25,162.24,0.06]
[1754245800986,99.03781443,162.25,162.24,0.06]
[1754245801193,16.78468397,162.23,162.22,0.06]
[1754245801386,78.18861309,162.23,162.22,0.06]
[1754245801586,78.90861309,162.23,162.22,0.06]
[1754245802274,84.08292534,162.23,162.22,0.06]
[1754245803303,78.90861309,162.23,162.22,0.06]
[1754245803473,101.64367931,162.23,162.22,0.06]
[1754245804171,42.78468397,162.2,162.18,0.06]
[1754245804374,78.20861309,162.19,162.18,0.06]
[1754245804600,84.09646735,162.19,162.18,0.06]
[1754245804797,78.92861309,162.19,162.18,0.06]
[1754245805184,84.09646735,162.19,162.18,0.06]
[1754245805376,52.84830536,162.19,162.18,0.06]
[1754245805580,61.4175616,162.19,162.18,0.06]
[1754245806104,62.1375616,162.19,162.18,0.06]
[1754245806706,8.74193784,162.19,162.18,0.06]
[1754245806907,52.10193784,162.19,162.18,0.7]
[1754245807118,47.94967238,162.19,162.18,0.7]
[1754245807300,43.36,162.19,162.18,0.06]
[1754245812618,44.08,162.19,162.18,0.06]
[1754245812909,43.36,162.19,162.18,0.06]
[1754245813914,11.14159635,162.2,162.18,19.33124752]
[1754245814117,11.14159635,162.2,162.19,18.63124752]
[1754245814415,11.14159635,162.2,162.19,9.31562376]
[1754245814911,11.14159635,162.2,162.19,27.85760676]
[1754245815697,11.14159635,162.2,162.19,37.17323052]
[1754245815904,26.0,162.24,162.23,9.31562376]
[1754245816907,43.44,162.27,162.23,9.31562376]
[1754245817134,43.44,162.27,162.2,9.31562376]
[1754245817135,43.44,162.27,162.26,9.31562376]
[1754245817291,0.03,162.3,162.26,9.31562376]
[1754245817496,43.49,162.3,162.29,9.31562376]
[1754245817692,0.03,162.3,162.29,9.31562376]
[1754245817895,0.03,162.3,162.24,26.0]
[1754245818111,0.03,162.3,162.28,9.31562376]
[1754245818112,0.74,162.3,162.28,9.31562376]
[1754245818293,0.74,162.3,162.22,2.471653]
[1754245818619,0.74,162.3,162.27,9.31562376]
[1754245818918,0.71,162.29,162.27,9.31562376]
[1754245820421,0.03,162.3,162.26,9.31562376]
[1754245820422,4.15036182,162.3,162.26,9.31562376]
[1754245820623,0.71,162.28,162.26,9.31562376]
[1754245820825,0.71,162.28,162.25,9.31562376]
[1754245820993,0.71,162.28,162.26,9.31562376]
[1754245821195,0.71,162.28,162.23,9.31562376]
[1754245821401,44.21,162.28,162.23,9.31562376]
[1754245821725,0.71,162.27,162.24,9.31562376]
[1754245822020,0.71,162.26,162.24,9.31562376]
[1754245822597,0.71,162.25,162.22,9.31562376]
[1754245824817,4.83427262,162.27,162.23,9.31562376]
[1754245825020,43.53,162.28,162.25,9.31562376]
[1754245825312,0.03,162.28,162.25,9.31562376]
[1754245825518,44.26,162.28,162.25,9.31562376]
[1754245825706,44.26,162.28,162.2,9.31562376]
[1754245825907,44.26,162.28,162.25,9.31562376]
[1754245826115,44.26,162.28,162.19,26.500836]
[1754245826116,43.55,162.28,162.24,9.31562376]
[1754245827393,43.55,162.28,162.27,9.31562376]
[1754245827991,0.03,162.28,162.27,9.31562376]
[1754245829738,0.03,162.28,162.27,26.10030773]
[1754245833408,0.03,162.3,162.29,52.10030773]
[1754245834230,0.03,162.3,162.29,61.41593149]
[1754245834404,0.03,162.3,162.29,69.31593149]
[1754245834730,0.03,162.3,162.29,60.00030773]
[1754245836723,0.03,162.3,162.29,62.47073973]
[1754245838002,0.03,162.3,162.29,36.47073973]
[1754245840014,0.03,162.3,162.29,37.08692064]
[1754245842449,0.03,162.3,162.29,46.4025444]
[1754245842621,0.03,162.3,162.29,37.08692064]
[1754245843927,0.03,162.3,162.29,46.4025444]
[1754245844839,0.03,162.3,162.29,37.08692064]
[1754245846946,0.73,162.3,162.29,36.47073973]
[1754245847136,0.73,162.3,162.28,51.4]
[1754245847328,0.03,162.3,162.29,9.31562376]
[1754245847535,0.03,162.3,162.28,60.71562376]
[1754245848043,0.03,162.3,162.29,26.10030773]
[1754245850436,0.03,162.3,162.29,28.57058773]
[1754245850642,0.03,162.3,162.29,2.47028]
[1754245850643,10.04562376,162.3,162.29,2.47028]
[1754245850849,10.04562376,162.3,162.29,1.75028]
[1754245851055,10.04562376,162.3,162.27,0.06]
[1754245851249,0.7,162.29,162.27,0.06]
[1754245851935,10.01562376,162.29,162.27,0.06]
[1754245852135,9.31562376,162.28,162.27,0.06]
[1754245852539,10.01562376,162.28,162.27,0.06]
[1754245853451,0.7,162.28,162.27,0.06]
[1754245853757,0.73,162.3,162.27,9.37562376]
[1754245853935,0.73,162.3,162.27,52.91562376]
[1754245854139,0.03,162.3,162.28,9.31562376]
[1754245855055,0.03,162.3,162.29,9.31562376]
[1754245855745,0.03,162.3,162.29,26.10030773]
[1754245856446,0.03,162.3,162.29,26.71648864]
[1754245856646,0.03,162.3,162.29,26.10030773]
[1754245857760,0.03,162.3,162.29,26.79030773]
[1754245859248,0.03,162.3,162.29,70.35030773]
[1754245860946,0.03,162.32,162.31,16.78468397]
[1754245861148,0.03,162.32,162.31,70.27641271]
[1754245861856,0.03,162.32,162.31,70.96641271]
[1754245862056,0.03,162.32,162.31,70.27641271]
[1754245862639,0.03,162.32,162.31,60.96078895]
[1754245862856,0.03,162.32,162.31,70.27641271]
[1754245863258,0.03,162.32,162.31,60.96078895]
[1754245863575,0.03,162.32,162.31,70.27641271]
[1754245864669,0.03,162.32,162.31,60.96078895]
[1754245864868,0.03,162.32,162.31,70.27641271]
[1754245866968,0.03,162.32,162.31,78.04641271]
[1754245869939,0.73,162.32,162.31,7.77]
[1754245870273,0.73,162.32,162.31,43.48]
[1754245870574,0.73,162.32,162.3,0.06]
[1754245870870,10.04562376,162.32,162.3,0.06]
[1754245871233,0.7,162.31,162.3,0.06]
[1754245876468,10.01562376,162.31,162.3,0.06]
[1754245876636,14.16481807,162.31,162.3,0.06]
[1754245877544,40.16481807,162.31,162.3,0.06]
[1754245884159,49.48044183,162.31,162.3,0.06]
[1754245884657,40.16481807,162.31,162.3,0.06]
[1754245885381,23.48044183,162.31,162.3,0.06]
[1754245885755,23.48044183,162.31,162.28,0.06]
[1754245885756,28.64829609,162.31,162.28,0.06]
[1754245885960,28.64829609,162.31,162.27,0.06]
[1754245885961,40.48347802,162.29,162.25,0.06]
[1754245886184,35.31562376,162.26,162.19,0.06]
[1754245886390,4.14919431,162.25,162.19,0.06]
[1754245886562,9.31562376,162.21,162.19,0.06]
[1754245886881,69.54,162.26,162.19,0.06]
[1754245886882,9.31562376,162.2,162.19,0.06]
[1754245887091,10.00562376,162.2,162.19,0.06]
[1754245887884,40.14097687,162.2,162.19,0.06]
[1754245888891,44.7312249,162.2,162.19,0.06]
[1754245889583,40.59587179,162.2,162.19,0.06]
[1754245891268,40.58825301,162.2,162.19,0.06]
[1754245893966,30.58262925,162.2,162.19,0.06]
[1754245894170,9.31562376,162.2,162.19,0.06]
[1754245894391,35.31562376,162.2,162.19,0.06]
[1754245898595,9.31562376,162.22,162.19,0.75]
[1754245898890,9.31562376,162.2,162.19,0.06]
[1754245899565,10.00562376,162.2,162.19,0.06]
[1754245899961,36.00562376,162.2,162.19,0.06]
[1754245901800,40.56964765,162.2,162.19,0.06]
[1754245903779,31.25402389,162.2,162.19,0.06]
[1754245903978,40.56964765,162.2,162.19,0.06]
[1754245905060,36.00562376,162.2,162.19,0.06]
[1754245905264,40.56536357,162.2,162.19,0.06]
[1754245908792,30.55973981,162.2,162.19,0.06]
[1754245908982,35.31562376,162.2,162.19,0.06]
[1754245909293,10.01036293,162.22,162.19,10.03562376]
[1754245909493,10.01036293,162.22,162.2,0.66]
[1754245910407,10.01036293,162.22,162.21,0.66]
[1754245910583,10.01036293,162.22,162.19,0.72]
[1754245910924,10.01036293,162.22,162.2,0.66]
[1754245911123,20.01598669,162.22,162.19,0.06]
[1754245911989,10.01036293,162.22,162.19,0.72]
[1754245912803,10.01036293,162.22,162.2,0.66]
[1754245913002,10.01036293,162.22,162.19,0.06]
[1754245913510,10.01036293,162.22,162.19,0.72]
[1754245914103,20.01598669,162.22,162.19,0.06]
[1754245914313,5.26298144,162.21,162.19,0.06]
[1754245914485,19.32598669,162.22,162.19,0.06]
[1754245914486,20.01598669,162.22,162.19,0.06]
[1754245914814,4.57290482,162.21,162.19,0.06]
[1754245915007,20.01598669,162.22,162.19,0.06]
[1754245915304,4.57298144,162.21,162.19,0.06]
[1754245915525,19.32598669,162.22,162.19,0.06]
[1754245916102,9.31562376,162.2,162.19,0.06]
[1754245916302,13.89029585,162.2,162.19,0.06]
[1754245916477,14.58029585,162.2,162.19,0.06]
[1754245920490,18.7031729,162.2,162.19,0.06]
[1754245921612,9.38754914,162.2,162.19,0.06]
[1754245921904,14.58867998,162.2,162.19,0.06]
[1754245922094,18.71155703,162.2,162.19,0.06]
[1754245924589,18.02155703,162.2,162.19,0.06]
[1754245924908,18.02353936,162.2,162.19,0.06]
[1754245926030,8.7079156,162.2,162.19,0.72]
[1754245926231,4.58503855,162.2,162.19,0.72]
[1754245929999,4.58503855,162.2,162.19,0.06]
[1754245930533,18.72256996,162.2,162.19,0.06]
[1754245932825,23.89042422,162.2,162.19,0.06]
[1754245933735,18.72256996,162.2,162.19,0.06]
[1754245936534,62.20256996,162.2,162.19,0.06]
[1754245943314,71.51819372,162.2,162.18,0.06]
[1754245943513,23.93713295,162.19,162.18,0.06]
[1754245943720,18.75256996,162.19,162.18,0.06]
[1754245944527,87.45256996,162.19,162.18,0.06]
[1754245945231,88.17256996,162.19,162.18,0.06]
[1754245947122,67.35609049,162.19,162.18,0.06]
[1754245948044,62.17256996,162.19,162.18,0.06]
[1754245949341,67.35374076,162.19,162.18,0.06]
[1754245949728,62.17256996,162.19,162.18,0.06]
[1754245949937,69.08195538,162.19,162.17,0.06]
[1754245950146,44.75256996,162.18,162.17,0.06]
[1754245951254,88.15256996,162.18,162.17,0.06]
[1754245953261,93.33290759,162.18,162.17,0.06]
[1754245953648,62.15256996,162.18,162.17,0.06]
[1754245954634,62.15256996,162.18,162.16,0.06]
[1754245954635,78.93725393,162.18,162.16,0.06]
[1754245954831,42.44663935,162.17,162.16,0.06]
[1754245955160,78.95725393,162.17,162.16,0.06]
[1754245956658,61.45256996,162.17,162.16,0.06]
[1754245956845,66.62880991,162.17,162.16,0.06]
[1754245957042,18.03256996,162.17,162.16,0.06]
[1754245957275,8.7169462,162.17,162.16,10.04562376]
[1754245957447,4.58503855,162.17,162.16,10.04562376]
[1754245958162,4.58503855,162.17,162.16,0.73]
[1754245958356,4.58503855,162.17,162.16,10.04562376]
[1754245958661,4.58503855,162.17,162.16,0.73]
[1754245959859,13.90066231,162.17,162.16,0.06]
[1754245960071,18.04407277,162.17,162.16,0.06]
[1754245960653,8.72844901,162.17,162.16,0.06]
[1754245961582,18.04407277,162.17,162.16,0.06]
[1754245962235,18.06551109,162.17,162.16,0.06]
[1754245962876,61.50551109,162.17,162.16,0.06]
[1754245963057,62.22551109,162.17,162.15,0.2]
[1754245963261,26.0,162.15,162.14,0.2]
[1754245963571,87.52551109,162.15,162.13,0.2]
[1754245963769,23.90398541,162.14,162.13,0.2]
[1754245963970,26.10030773,162.13,162.09,0.06]
[1754245964161,8.74988733,162.12,162.09,0.06]
[1754245964349,67.39989625,162.12,162.09,0.06]
[1754245964547,18.72551109,162.12,162.09,0.06]
[1754245964771,87.58551109,162.12,162.09,0.06]
[1754245964979,88.24551109,162.12,162.09,0.06]
[1754245965184,87.58551109,162.12,162.09,0.06]
[1754245965391,8.74988733,162.12,162.11,0.75]
[1754245965684,4.60647687,162.12,162.11,0.75]
[1754245965847,18.06134878,162.12,162.11,0.06]
[1754245966381,8.74572502,162.12,162.11,0.06]
[1754245966564,48.16647687,162.12,162.11,0.75]
[1754245966877,4.60647687,162.12,162.11,0.75]
[1754245967247,4.60647687,162.12,162.11,10.06562376]
[1754245969661,4.60647687,162.12,162.11,0.75]
[1754245971669,4.60647687,162.12,162.11,0.06]
[1754245974581,4.63647687,162.12,162.11,0.06]
[1754245976885,14.61210063,162.12,162.11,0.06]
[1754245977192,18.75291565,162.12,162.11,0.06]
[1754245977492,62.27291565,162.12,162.11,0.06]
[1754245979074,62.31291565,162.12,162.1,0.2]
[1754245979395,8.74729189,162.11,162.1,0.2]
[1754245979594,4.60647687,162.11,162.1,10.20562376]
[1754245980685,4.60647687,162.11,162.1,0.89]
[1754245981404,4.60647687,162.11,162.1,0.2]
[1754245981990,4.60647687,162.11,162.1,10.20562376]
[1754245982170,0.03,162.12,162.11,16.78468397]